fUST/lending_fUST_20250208
["ID","MTS","AMOUNT","RATE_DAILY","PERIOD"]
[352173479,1738974644161,-500.0,0.00011095,2]
[352173480,1738974644171,-500.0,0.00011095,2]
[352173481,1738974644181,-500.0,0.00011095,2]
[352173482,1738974644190,-500.0,0.00011095,2]
[352173483,1738974644200,-618.38,0.00011095,2]
[352173484,1738974644209,-519.04,0.00011095,2]
[352173485,1738974644219,-500.0,0.00011095,2]
[352173486,1738974644229,-500.0,0.00011095,2]
[352173487,1738974644238,-500.0,0.00011095,2]
[352173488,1738974644250,-500.0,0.00011095,2]
[352173489,1738974644260,-591.15095071,0.00011095,2]
[352173490,1738974644270,-500.0,0.00011095,2]
[352173491,1738974644279,-500.0,0.00011095,2]
[352173492,1738974644289,-500.0,0.00011095,2]
[352173493,1738974644300,-500.0,0.00011095,2]
[352173494,1738974644310,-500.0,0.00011095,2]
[352173495,1738974644325,-500.0,0.00011095,2]
[352173496,1738974644335,-500.0,0.00011095,2]
[352173497,1738974644345,-500.0,0.00011095,2]
[352173498,1738974644355,-500.0,0.00011095,2]
[352173499,1738974644365,-500.0,0.00011095,2]
[352173500,1738974644374,-936.72,0.00011095,2]
[352173501,1738974644385,-500.0,0.00011095,2]
[352173502,1738974644396,-909.0,0.00011095,2]
[352173503,1738974644405,-500.0,0.00011095,2]
[352173504,1738974644414,-500.0,0.00011095,2]
[352173505,1738974644423,-500.0,0.00011095,2]
[352173506,1738974644433,-500.0,0.00011095,2]
[352173507,1738974644442,-500.0,0.00011095,2]
[352173508,1738974644451,-188.72,0.00011095,2]
[352173509,1738974644461,-769.7,0.00011095,2]
[352173510,1738974644470,-500.0,0.00011095,2]
[352173511,1738974644480,-500.0,0.00011095,2]
[352173512,1738974644491,-500.0,0.00011095,2]
[352173513,1738974644508,-500.0,0.00011095,2]
[352173514,1738974644518,-500.0,0.00011095,2]
[352173515,1738974644527,-500.0,0.00011095,2]
[352173516,1738974644537,-500.0,0.00011095,2]
[352173517,1738974644546,-500.0,0.00011095,2]
[352173518,1738974644557,-541.9,0.00011095,2]
[352173519,1738974644566,-560.67641647,0.00011095,2]
[352173520,1738974644576,-500.0,0.00011095,2]
[352173521,1738974644585,-500.0,0.00011095,2]
[352173522,1738974644595,-500.0,0.00011095,2]
[352173523,1738974644605,-500.0,0.00011095,2]
[352173524,1738974644615,-500.0,0.00011095,2]
[352173525,1738974644624,-500.0,0.00011095,2]
[352173526,1738974644635,-500.0,0.00011095,2]
[352173527,1738974644644,-500.0,0.00011095,2]
[352173528,1738974644653,-500.0,0.00011095,2]
[352173529,1738974644664,-500.0,0.00011095,2]
[352173530,1738974644674,-500.0,0.00011095,2]
[352173531,1738974644684,-500.0,0.00011095,2]
[352173532,1738974644694,-526.8304261,0.00011095,2]
[352173533,1738974644703,-500.0,0.00011095,2]
[352173534,1738974644713,-500.0,0.00011095,2]
[352173535,1738974644723,-500.0,0.00011095,2]
[352173536,1738974644732,-1023.05,0.00011095,2]
[352173537,1738974644742,-500.0,0.00011095,2]
[352173538,1738974644752,-613.03,0.00011095,2]
[352173539,1738974644763,-525.18,0.00011095,2]
[352173540,1738974644774,-500.0,0.00011095,2]
[352173541,1738974644785,-282.69,0.00011095,2]
[352173542,1738974644796,-500.0,0.00011095,2]
[352173543,1738974644806,-463.8,0.00011095,2]
[352173544,1738974644815,-500.0,0.00011095,2]
[352173545,1738974644825,-500.0,0.00011095,2]
[352173546,1738974644834,-500.0,0.00011095,2]
[352173547,1738974644844,-785.6,0.00011095,2]
[352173548,1738974644853,-500.0,0.00011095,2]
[352173549,1738974644863,-500.0,0.00011095,2]
[352173550,1738974644872,-9198.19,0.00011095,2]
[352173551,1738974644882,-500.0,0.00011095,2]
[352173552,1738974644894,-500.0,0.00011095,2]
[352173553,1738974644903,-222.68,0.00011095,2]
[352173554,1738974644912,-961.83,0.00011095,2]
[352173555,1738974644922,-500.0,0.00011095,2]
[352173556,1738974644932,-692.77,0.00011095,2]
[352173557,1738974644941,-195.72,0.00011095,2]
[352173558,1738974644951,-500.0,0.00011095,2]
[352173559,1738974644960,-527.79,0.00011095,2]
[352173560,1738974644970,-500.0,0.00011095,2]
[352173561,1738974644979,-1105.8,0.00011095,2]
[352173562,1738974644989,-1073.22,0.00011095,2]
[352173563,1738974644998,-2442.89,0.00011095,2]
[352173564,1738974645008,-310.52777617,0.00011095,2]
[352173565,1738974645017,-500.0,0.00011095,2]
[352173566,1738974645026,-515.97,0.00011095,2]
[352173567,1738974645036,-2224.23,0.00011095,2]
[352173568,1738974645045,-919.55,0.00011095,2]
[352173569,1738974645054,-500.0,0.00011095,2]
[352173570,1738974645064,-561.06,0.00011095,2]
[352173571,1738974645073,-500.0,0.00011095,2]
[352173572,1738974645083,-622.88155614,0.00011095,2]
[352173573,1738974645092,-500.0,0.00011095,2]
[352173574,1738974645101,-500.0,0.00011095,2]
[352173575,1738974645110,-500.0,0.00011095,2]
[352173576,1738974645119,-500.0,0.00011095,2]
[352173577,1738974645128,-500.0,0.00011095,2]
[352173578,1738974645140,-178.53,0.00011095,2]
[352173579,1738974645149,-500.0,0.00011095,2]
[352173580,1738974645159,-500.0,0.00011095,2]
[352173581,1738974645169,-500.0,0.00011095,2]
[352173582,1738974645178,-1259.73,0.00011095,2]
[352173583,1738974645188,-817.68,0.00011095,2]
[352173584,1738974645198,-2862.95,0.00011095,2]
[352173585,1738974645207,-3516.95,0.00011095,2]
[352173586,1738974645217,-500.0,0.00011095,2]
[352173587,1738974645227,-500.0,0.00011095,2]
[352173588,1738974645236,-500.0,0.00011095,2]
[352173589,1738974645245,-168.13140738,0.00011095,2]
[352173590,1738974645255,-500.0,0.00011095,2]
[352173591,1738974645264,-500.0,0.00011095,2]
[352173592,1738974645274,-521.22,0.00011095,2]
[352173593,1738974645284,-32344.5,0.00011095,2]
[352173594,1738974645294,-500.0,0.00011095,2]
[352173595,1738974645309,-1322.92,0.00011095,2]
[352173596,1738974645326,-500.0,0.00011095,2]
[352173597,1738974645335,-500.0,0.00011095,2]
[352173598,1738974645345,-775.58,0.00011095,2]
[352173599,1738974645355,-8197.78,0.00011095,2]
[352173600,1738974645365,-1370.81,0.00011095,2]
[352173601,1738974645375,-500.0,0.00011095,2]
[352173602,1738974645385,-500.0,0.00011095,2]
[352173603,1738974645395,-1431.68,0.00011095,2]
[352173604,1738974645405,-500.0,0.00011095,2]
[352173605,1738974645416,-500.0,0.00011095,2]
[352173606,1738974645426,-500.0,0.00011095,2]
[352173607,1738974645435,-500.0,0.00011095,2]
[352173608,1738974645445,-500.0,0.00011095,2]
[352173609,1738974645454,-728.48,0.00011095,2]
[352173610,1738974645464,-1541.46,0.00011095,2]
[352173611,1738974645474,-500.0,0.00011095,2]
[352173612,1738974645483,-785.66,0.00011095,2]
[352173613,1738974645493,-500.0,0.00011095,2]
[352173614,1738974645503,-500.0,0.00011095,2]
[352173615,1738974645512,-500.0,0.00011095,2]
[352173616,1738974645521,-500.0,0.00011095,2]
[352173617,1738974645532,-500.0,0.00011095,2]
[352173618,1738974645541,-500.0,0.00011095,2]
[352173619,1738974645550,-501.98540406,0.00011095,2]
[352173620,1738974645561,-1085.86,0.00011095,2]
[352173621,1738974645570,-500.0,0.00011095,2]
[352173622,1738974645579,-500.0,0.00011095,2]
[352173623,1738974645589,-500.0,0.00011095,2]
[352173624,1738974645598,-500.0,0.00011095,2]
[352173625,1738974645608,-500.0,0.00011095,2]
[352173626,1738974645617,-566.84,0.00011095,2]
[352173627,1738974645627,-656.1,0.00011095,2]
[352173628,1738974645637,-500.0,0.00011095,2]
[352173629,1738974645647,-509.66229662,0.00011095,2]
[352173630,1738974645655,-500.0,0.00011095,2]
[352173631,1738974645665,-171.76613922,0.00011095,2]
[352173632,1738974645674,-797.26,0.00011095,2]
[352173633,1738974645683,-500.0,0.00011095,2]
[352173634,1738974645693,-500.0,0.00011095,2]
[352173635,1738974645703,-500.0,0.00011095,2]
[352173636,1738974645713,-500.0,0.00011095,2]
[352173637,1738974645722,-500.0,0.00011095,2]
[352173638,1738974645731,-500.0,0.00011095,2]
[352173639,1738974645741,-502.77,0.00011095,2]
[352173640,1738974645750,-500.0,0.00011095,2]
[352173641,1738974645759,-500.0,0.00011095,2]
[352173642,1738974645768,-2443.17,0.00011095,2]
[352173643,1738974645778,-2249.97,0.00011095,2]
[352173644,1738974645787,-500.0,0.00011095,2]
[352173645,1738974645796,-500.0,0.00011095,2]
[352173646,1738974645806,-500.0,0.00011095,2]
[352173647,1738974645815,-5006.08,0.00011095,2]
[352173648,1738974645824,-500.0,0.00011095,2]
[352173649,1738974645833,-500.0,0.00011095,2]
[352173650,1738974645843,-500.0,0.00011095,2]
[352173651,1738974645852,-500.0,0.00011095,2]
[352173652,1738974645862,-2503.36,0.00011095,2]
[352173653,1738974645871,-500.0,0.00011095,2]
[352173654,1738974645881,-501.0601315,0.00011095,2]
[352173655,1738974645892,-500.0,0.00011095,2]
[352173656,1738974645901,-1044.62,0.00011095,2]
[352173657,1738974645911,-1435.68,0.00011095,2]
[352173658,1738974645922,-705.01,0.00011095,2]
[352173659,1738974645932,-500.0,0.00011095,2]
[352173660,1738974645942,-619.59,0.00011095,2]
[352173661,1738974645952,-500.0,0.00011095,2]
[352173662,1738974645962,-500.0,0.00011095,2]
[352173663,1738974645972,-500.0,0.00011095,2]
[352173664,1738974645981,-500.0,0.00011095,2]
[352173666,1738974645992,-1173.99,0.00011095,2]
[352173668,1738974646002,-500.0,0.00011095,2]
[352173670,1738974646012,-502.62098657,0.00011095,2]
[352173672,1738974646022,-500.0,0.00011095,2]
[352173674,1738974646168,-983.05,0.00011095,2]
[352173675,1738974646179,-3285.86,0.00011095,2]
[352173676,1738974646190,-500.0,0.00011095,2]
[352173677,1738974646199,-500.0,0.00011095,2]
[352173678,1738974646208,-500.0,0.00011095,2]
[352173679,1738974646219,-500.0,0.00011095,2]
[352173680,1738974646229,-561.75,0.00011095,2]
[352173681,1738974646238,-500.0,0.00011095,2]
[352173682,1738974646248,-500.0,0.00011095,2]
[352173683,1738974646257,-356.32,0.00011095,2]
[352173684,1738974646267,-500.0,0.00011095,2]
[352173685,1738974646276,-500.0,0.00011095,2]
[352173686,1738974646286,-577.4,0.00011095,2]
[352173687,1738974646296,-500.0,0.00011095,2]
[352173688,1738974646306,-500.0,0.00011095,2]
[352173689,1738974646319,-153.91,0.00011095,2]
[352173690,1738974646332,-554.21,0.00011095,2]
[352173691,1738974646342,-500.0,0.00011095,2]
[352173692,1738974646352,-500.0,0.00011095,2]
[352173693,1738974646363,-500.0,0.00011095,2]
[352173694,1738974646378,-500.0,0.00011095,2]
[352173695,1738974646389,-941.93,0.00011095,2]
[352173696,1738974646399,-500.0,0.00011095,2]
[352173697,1738974646410,-161.5729032,0.00011132,2]
[352173698,1738974646420,-6435.33,0.00011231,2]
[352173699,1738974646430,-6435.33,0.00011231,2]
[352173700,1738974646443,-6435.33,0.00011231,2]
[352173701,1738974646458,-6435.33,0.00011231,2]
[352173702,1738974646468,-6435.38,0.00011231,2]
[352173703,1738974646479,-500.0,0.00011232,2]
[352173705,1738974646490,-500.0,0.00011232,2]
[352173707,1738974646506,-500.0,0.00011232,2]
[352173710,1738974646520,-783.75877685,0.00011232,2]
[352173712,1738974646532,-329.90026881,0.00011232,2]
[352173714,1738974646544,-500.0,0.00011232,2]
[352173716,1738974646554,-500.0,0.00011232,2]
[352173718,1738974646566,-500.0,0.00011232,2]
[352173720,1738974646578,-500.0,0.00011232,2]
[352173722,1738974646588,-500.0,0.00011232,2]
[352173724,1738974646599,-500.0,0.00011232,2]
[352173726,1738974646609,-500.0,0.00011232,2]
[352173728,1738974646618,-500.0,0.00011232,2]
[352173730,1738974646628,-500.0,0.00011232,2]
[352173732,1738974646638,-500.0,0.00011232,2]
[352173734,1738974646648,-576.2,0.00011232,2]
[352173736,1738974646658,-500.0,0.00011232,2]
[352173737,1738974646668,-500.0,0.00011232,2]
[352173738,1738974646678,-500.0,0.00011232,2]
[352173739,1738974646687,-500.0,0.00011232,2]
[352173740,1738974646697,-500.0,0.00011232,2]
[352173741,1738974646706,-500.0,0.00011232,2]
[352173742,1738974646715,-500.0,0.00011232,2]
[352173743,1738974646725,-151.78966454,0.00011232,2]
[352173744,1738974646734,-199.0,0.00011232,2]
[352173745,1738974646743,-500.0,0.00011232,2]
[352173746,1738974646753,-500.0,0.00011232,2]
[352173747,1738974646762,-282.23554672,0.00011232,2]
[352173748,1738974646772,-500.0,0.00011232,2]
[352173749,1738974646781,-500.0,0.00011232,2]
[352173750,1738974646791,-500.0,0.00011232,2]
[352173751,1738974646800,-500.0,0.00011232,2]
[352173752,1738974646809,-500.0,0.00011232,2]
[352173753,1738974646818,-615.62,0.00011232,2]
[352173754,1738974646827,-270.4,0.00011232,2]
[352173755,1738974646837,-500.0,0.00011232,2]
[352173756,1738974646846,-500.0,0.00011232,2]
[352173757,1738974646855,-500.0,0.00011232,2]
[352173758,1738974646865,-1066.74,0.00011232,2]
[352173759,1738974646874,-500.0,0.00011232,2]
[352173760,1738974646882,-500.0,0.00011232,2]
[352173761,1738974646893,-345.12,0.00011232,2]
[352173762,1738974646901,-500.0,0.00011232,2]
[352173763,1738974646911,-361.83,0.00011232,2]
[352173764,1738974646920,-500.0,0.00011232,2]
[352173765,1738974646930,-500.0,0.00011232,2]
[352173766,1738974646939,-618.38,0.00011232,2]
[352173767,1738974646949,-519.04,0.00011232,2]
[352173768,1738974646958,-500.0,0.00011232,2]
[352173769,1738974646967,-500.0,0.00011232,2]
[352173770,1738974646977,-500.0,0.00011232,2]
[352173771,1738974646986,-500.0,0.00011232,2]
[352173772,1738974646995,-183.77,0.00011232,2]
[352173773,1738974647005,-500.0,0.00011232,2]
[352173774,1738974647015,-936.72,0.00011232,2]
[352173775,1738974647024,-500.0,0.00011232,2]
[352173776,1738974647033,-909.0,0.00011232,2]
[352173777,1738974647043,-500.0,0.00011232,2]
[352173778,1738974647052,-769.7,0.00011232,2]
[352173779,1738974647062,-460.66,0.00011232,2]
[352173780,1738974647072,-500.0,0.00011232,2]
[352173781,1738974647083,-500.0,0.00011232,2]
[352173782,1738974647092,-176.04,0.00011232,2]
[352173783,1738974647101,-500.0,0.00011232,2]
[352173784,1738974647111,-202.65,0.00011232,2]
[352173785,1738974647120,-500.0,0.00011232,2]
[352173786,1738974647129,-500.0,0.00011232,2]
[352173787,1738974647140,-559.32,0.00011232,2]
[352173788,1738974647150,-500.0,0.00011232,2]
[352173789,1738974647159,-500.0,0.00011232,2]
[352173790,1738974647169,-500.0,0.00011232,2]
[352173791,1738974647178,-500.0,0.00011232,2]
[352173792,1738974647188,-500.0,0.00011232,2]
[352173793,1738974647199,-500.0,0.00011232,2]
[352173794,1738974647208,-500.0,0.00011232,2]
[352173795,1738974647218,-500.0,0.00011232,2]
[352173796,1738974647228,-500.0,0.00011232,2]
[352173797,1738974647238,-500.0,0.00011232,2]
[352173798,1738974647248,-1023.05,0.00011232,2]
[352173799,1738974647258,-500.0,0.00011232,2]
[352173800,1738974647269,-500.0,0.00011232,2]
[352173801,1738974647279,-500.0,0.00011232,2]
[352173802,1738974647290,-500.0,0.00011232,2]
[352173803,1738974647300,-500.0,0.00011232,2]
[352173804,1738974647311,-785.6,0.00011232,2]
[352173805,1738974647322,-364.35,0.00011232,2]
[352173806,1738974647332,-500.0,0.00011232,2]
[352173807,1738974647342,-9198.19,0.00011232,2]
[352173808,1738974647352,-500.0,0.00011232,2]
[352173809,1738974647362,-500.0,0.00011232,2]
[352173810,1738974647372,-961.83,0.00011232,2]
[352173811,1738974647382,-500.0,0.00011232,2]
[352173812,1738974647394,-692.77,0.00011232,2]
[352173813,1738974647405,-527.79,0.00011232,2]
[352173814,1738974647415,-1105.8,0.00011232,2]
[352173815,1738974647424,-1073.22,0.00011232,2]
[352173816,1738974647434,-2442.89,0.00011232,2]
[352173817,1738974647444,-500.0,0.00011232,2]
[352173818,1738974647454,-515.97,0.00011232,2]
[352173819,1738974647464,-2224.23,0.00011232,2]
[352173820,1738974647474,-919.55,0.00011232,2]
[352173821,1738974647485,-500.0,0.00011232,2]
[352173822,1738974647495,-561.06,0.00011232,2]
[352173823,1738974647506,-289.6,0.00011232,2]
[352173824,1738974647516,-500.0,0.00011232,2]
[352173825,1738974647526,-500.0,0.00011232,2]
[352173826,1738974647537,-500.0,0.00011232,2]
[352173827,1738974647548,-516.70339519,0.00011232,2]
[352173828,1738974647558,-500.0,0.00011232,2]
[352173829,1738974647569,-1259.73,0.00011232,2]
[352173830,1738974647579,-817.68,0.00011232,2]
[352173831,1738974647590,-2862.95,0.00011232,2]
[352173832,1738974647600,-3516.95,0.00011232,2]
[352173833,1738974647610,-500.0,0.00011232,2]
[352173834,1738974647620,-500.0,0.00011232,2]
[352173835,1738974647629,-500.0,0.00011232,2]
[352173836,1738974647640,-521.22,0.00011232,2]
[352173837,1738974647650,-32344.5,0.00011232,2]
[352173838,1738974647661,-1322.92,0.00011232,2]
[352173839,1738974647670,-500.0,0.00011232,2]
[352173840,1738974647679,-775.58,0.00011232,2]
[352173841,1738974647689,-8197.78,0.00011232,2]
[352173842,1738974647698,-1370.81,0.00011232,2]
[352173843,1738974647708,-1431.68,0.00011232,2]
[352173844,1738974647717,-500.0,0.00011232,2]
[352173845,1738974647727,-500.0,0.00011232,2]
[352173846,1738974647737,-500.0,0.00011232,2]
[352173847,1738974647747,-500.0,0.00011232,2]
[352173848,1738974647757,-728.48,0.00011232,2]
[352173849,1738974647767,-1541.46,0.00011232,2]
[352173850,1738974647778,-785.66,0.00011232,2]
[352173851,1738974647788,-500.0,0.00011232,2]
[352173852,1738974647799,-500.0,0.00011232,2]
[352173853,1738974647809,-500.0,0.00011232,2]
[352173854,1738974647819,-500.0,0.00011232,2]
[352173855,1738974647830,-1085.86,0.00011232,2]
[352173856,1738974647840,-500.0,0.00011232,2]
[352173857,1738974647851,-482.42,0.00011232,2]
[352173858,1738974647861,-563.66,0.00011232,2]
[352173859,1738974647871,-500.0,0.00011232,2]
[352173860,1738974647881,-500.0,0.00011232,2]
[352173861,1738974647893,-566.84,0.00011232,2]
[352173862,1738974647902,-656.1,0.00011232,2]
[352173863,1738974647910,-500.0,0.00011232,2]
[352173864,1738974647918,-500.0,0.00011232,2]
[352173865,1738974647927,-797.26,0.00011232,2]
[352173866,1738974647937,-500.0,0.00011232,2]
[352173867,1738974647947,-500.0,0.00011232,2]
[352173868,1738974647957,-502.77,0.00011232,2]
[352173869,1738974647966,-2443.17,0.00011232,2]
[352173870,1738974647976,-500.0,0.00011232,2]
[352173871,1738974647986,-2249.97,0.00011232,2]
[352173872,1738974647995,-500.0,0.00011232,2]
[352173873,1738974648005,-5006.08,0.00011232,2]
[352173874,1738974648014,-515.15,0.00011232,2]
[352173875,1738974648024,-500.0,0.00011232,2]
[352173876,1738974648034,-500.0,0.00011232,2]
[352173877,1738974648044,-500.0,0.00011232,2]
[352173878,1738974648054,-2503.36,0.00011232,2]
[352173879,1738974648065,-150.91,0.00011232,2]
[352173880,1738974648076,-1044.62,0.00011232,2]
[352173881,1738974648086,-1435.68,0.00011232,2]
[352173882,1738974648098,-705.01,0.00011232,2]
[352173883,1738974648110,-619.59,0.00011232,2]
[352173884,1738974648121,-500.0,0.00011232,2]
[352173885,1738974648132,-1173.99,0.00011232,2]
[352173886,1738974648146,-500.0,0.00011232,2]
[352173887,1738974648156,-3285.86,0.00011232,2]
[352173888,1738974648168,-983.05,0.00011232,2]
[352173889,1738974648179,-500.0,0.00011232,2]
[352173890,1738974648189,-500.0,0.00011232,2]
[352173891,1738974648200,-500.0,0.00011232,2]
[352173892,1738974648212,-561.75,0.00011232,2]
[352173893,1738974648224,-500.0,0.00011232,2]
[352173894,1738974648234,-500.0,0.00011232,2]
[352173895,1738974648244,-500.0,0.00011232,2]
[352173896,1738974648254,-554.21,0.00011232,2]
[352173897,1738974648264,-500.0,0.00011232,2]
[352173898,1738974648275,-500.0,0.00011232,2]
[352173899,1738974648286,-941.93,0.00011232,2]
[352173900,1738974648295,-274.85087771,0.00011274,2]
[352173901,1738974648305,-10700.4703862,0.0001135,2]
[352173902,1738974648314,-500.0,0.00011369,2]
[352173903,1738974648329,-500.0,0.00011369,2]
[352173904,1738974648341,-500.0,0.00011369,2]
[352173905,1738974648351,-405.28,0.00011369,2]
[352173906,1738974648363,-500.0,0.00011369,2]
[352173907,1738974648373,-217.79,0.00011369,2]
[352173908,1738974648382,-500.0,0.00011369,2]
[352173909,1738974648394,-615.62,0.00011369,2]
[352173910,1738974648405,-500.0,0.00011369,2]
[352173911,1738974648416,-500.0,0.00011369,2]
[352173912,1738974648426,-500.0,0.00011369,2]
[352173913,1738974648436,-1066.74,0.00011369,2]
[352173914,1738974648447,-500.0,0.00011369,2]
[352173915,1738974648457,-500.0,0.00011369,2]
[352173916,1738974648469,-500.0,0.00011369,2]
[352173917,1738974648479,-500.0,0.00011369,2]
[352173918,1738974648491,-500.0,0.00011369,2]
[352173919,1738974648502,-618.38,0.00011369,2]
[352173920,1738974648513,-519.04,0.00011369,2]
[352173921,1738974648523,-500.0,0.00011369,2]
[352173922,1738974648534,-500.0,0.00011369,2]
[352173923,1738974648544,-500.0,0.00011369,2]
[352173924,1738974648554,-500.0,0.00011369,2]
[352173925,1738974648564,-300.41,0.00011369,2]
[352173926,1738974648574,-936.72,0.00011369,2]
[352173927,1738974648584,-500.0,0.00011369,2]
[352173928,1738974648595,-909.0,0.00011369,2]
[352173929,1738974648604,-500.0,0.00011369,2]
[352173930,1738974648614,-769.7,0.00011369,2]
[352173931,1738974648624,-254.16,0.00011369,2]
[352173932,1738974648634,-500.0,0.00011369,2]
[352173933,1738974648645,-492.0,0.00011369,2]
[352173934,1738974648656,-500.0,0.00011369,2]
[352173935,1738974648667,-500.0,0.00011369,2]
[352173936,1738974648677,-500.0,0.00011369,2]
[352173937,1738974648688,-500.0,0.00011369,2]
[352173938,1738974648699,-500.0,0.00011369,2]
[352173939,1738974648712,-1023.05,0.00011369,2]
[352173940,1738974648721,-361.98,0.00011369,2]
[352173941,1738974648731,-500.0,0.00011369,2]
[352173942,1738974648742,-500.0,0.00011369,2]
[352173943,1738974648752,-785.6,0.00011369,2]
[352173944,1738974648761,-500.0,0.00011369,2]
[352173945,1738974648770,-9198.19,0.00011369,2]
[352173946,1738974648780,-500.0,0.00011369,2]
[352173947,1738974648789,-500.0,0.00011369,2]
[352173948,1738974648799,-961.83,0.00011369,2]
[352173949,1738974648808,-500.0,0.00011369,2]
[352173950,1738974648817,-692.77,0.00011369,2]
[352173951,1738974648826,-527.79,0.00011369,2]
[352173952,1738974648836,-1105.8,0.00011369,2]
[352173953,1738974648846,-1073.22,0.00011369,2]
[352173954,1738974648855,-2442.89,0.00011369,2]
[352173955,1738974648864,-500.0,0.00011369,2]
[352173956,1738974648874,-515.97,0.00011369,2]
[352173957,1738974648884,-2224.23,0.00011369,2]
[352173958,1738974648895,-919.55,0.00011369,2]
[352173959,1738974648906,-500.0,0.00011369,2]
[352173960,1738974648917,-561.06,0.00011369,2]
[352173961,1738974648927,-500.0,0.00011369,2]
[352173962,1738974648936,-500.0,0.00011369,2]
[352173963,1738974648945,-1259.73,0.00011369,2]
[352173964,1738974648955,-817.68,0.00011369,2]
[352173965,1738974648963,-2862.95,0.00011369,2]
[352173966,1738974648973,-3516.95,0.00011369,2]
[352173967,1738974648982,-500.0,0.00011369,2]
[352173968,1738974648991,-500.0,0.00011369,2]
[352173969,1738974649001,-245.06,0.00011369,2]
[352173970,1738974649009,-521.22,0.00011369,2]
[352173971,1738974649018,-32344.5,0.00011369,2]
[352173972,1738974649028,-1322.92,0.00011369,2]
[352173973,1738974649037,-500.0,0.00011369,2]
[352173974,1738974649047,-775.58,0.00011369,2]
[352173975,1738974649056,-8197.78,0.00011369,2]
[352173976,1738974649065,-1370.81,0.00011369,2]
[352173977,1738974649074,-1431.68,0.00011369,2]
[352173978,1738974649083,-500.0,0.00011369,2]
[352173979,1738974649092,-500.0,0.00011369,2]
[352173980,1738974649101,-500.0,0.00011369,2]
[352173981,1738974649110,-500.0,0.00011369,2]
[352173982,1738974649119,-728.48,0.00011369,2]
[352173983,1738974649128,-1541.46,0.00011369,2]
[352173984,1738974649139,-785.66,0.00011369,2]
[352173985,1738974649147,-500.0,0.00011369,2]
[352173986,1738974649156,-500.0,0.00011369,2]
[352173987,1738974649166,-500.0,0.00011369,2]
[352173988,1738974649175,-500.0,0.00011369,2]
[352173989,1738974649184,-500.0,0.00011369,2]
[352173990,1738974649193,-1085.86,0.00011369,2]
[352173991,1738974649203,-500.0,0.00011369,2]
[352173992,1738974649212,-566.84,0.00011369,2]
[352173993,1738974649220,-656.1,0.00011369,2]
[352173994,1738974649230,-500.0,0.00011369,2]
[352173995,1738974649239,-797.26,0.00011369,2]
[352173996,1738974649248,-500.0,0.00011369,2]
[352173997,1738974649257,-500.0,0.00011369,2]
[352173998,1738974649267,-502.77,0.00011369,2]
[352173999,1738974649276,-2443.17,0.00011369,2]
[352174000,1738974649285,-567.52,0.00011369,2]